[Event "Germany Countries-chT Youth 2022"]
[Site "Wiesbaden"]
[Date "2022.10.03"]
[Round "6"]
[White "Gluma, Christian"]
[Black "Bosselmann, Tom Linus"]
[Result "1-0"]
[ECO "B76"]
[WhiteElo "2134"]
[BlackElo "2061"]
[Annotator "TA"]
[PlyCount "119"]
[EventDate "2022.09.28"]
[EventType "team-tourn"]
[EventRounds "7"]
[EventCountry "GER"]
[SourceTitle "playchess.com"]
[Source "ChessBase"]
[SourceQuality "1"]
[TimeControl "40/5400+30:1800+30"]

{[%evp 25,119,35,45,21,42,23,34,43,45,39,49,-14,60,47,89,75,100,100,100,103,200,197,204,129,240,216,187,116,153,137,130,114,238,237,242,222,236,204,211,176,259,258,254,254,254,179,199,160,165,135,166,162,157,144,190,146,156,147,186,173,141,133,209,156,161,166,166,148,353,370,358,318,336,351,472,337,450,435,509,492,620,609,1590,1641,1511,1446,1367,1365,1353,1146,1025,964,29984,29985,29991,29985]} 1. e4 {[%emt 0:00:03]} c5 {[%emt 0:00:09]} 2. Nf3 {[%emt 0:00:05]} d6 {[%emt 0:00:04]} 3. d4 {[%emt 0:00:05]} cxd4 {[%emt 0:00:04]} 4. Nxd4 {[%emt 0:00:05]} Nf6 {[%emt 0:00:05]} 5. Nc3 {[%emt 0:00:08]} g6 {[%emt 0:00:49]} 6. Be3 {[%emt 0:01:30]} Bg7 {[%emt 0:00:06]} 7. f3 {[%emt 0:00:26]} O-O {[%emt 0:00:05]} 8. Qd2 {[%emt 0:00:23]} Nc6 {[%emt 0:00:05]} 9. O-O-O {[%emt 0:02:29]} d5 {[%emt 0:03:40]} 10. Qe1 {[%emt 0:00:30]} e5 {[%emt 0:02:15]} 11. Nxc6 {[%emt 0:00:19]} bxc6 {[%emt 0:00:07]} 12. exd5 {[%emt 0:00:06]} Nxd5 {[%emt 0:00:58]} 13. Bc4 {[%emt 0:01:09]} Be6 {[%emt 0:00:21]} 14. Kb1 {[%emt 0:02:00] B76: Sicilian Dragon: Yugoslav Attack, 9 g4 and 9 0-0-0.} Rb8 {[%emt 0:24:25][%cal Oe5e4]} 15. Bb3 {[%emt 0:09:24]} Qc7 {[%emt 0:03:00]} 16. Bc5 {[%emt 0:04:48] White is slightly better.} ({But not} 16. Nxd5 cxd5 17. Qe2 Rfc8 $17) 16... Rfd8 {[%emt 0:13:35]} 17. Ne4 {[%emt 0:05:27]} a5 {[%emt 0:11:20]} 18. a4 {[%emt 0:08:26] [#]} (18. g4 $14) 18... h6 {[%emt 0:01:28] [#]} (18... Rxb3 $1 $11 19. cxb3 f5) 19. Ba3 $146 {[%emt 0:06:21]} ({Predecessor:} 19. h4 f5 20. Nc3 Nf4 21. Rxd8+ Rxd8 22. g3 Bxb3 23. gxf4 Bf7 24. fxe5 Bxe5 25. Bb6 Qxb6 26. Qxe5 {1-0 (42) Kushagra,M (2351)-Horak,M (2331) Chess.com INT 2020}) 19... Rxb3 {[%emt 0:21:47]} 20. cxb3 {[%emt 0:01:19]} f5 {[%emt 0:00:28]} 21. Nc5 {[%emt 0:05:06]} Bf7 {[%emt 0:00:11]} 22. g4 {[%emt 0:07:16]} Nf4 {[%emt 0:03:07]} (22... Qb6 $16) 23. gxf5 {[%emt 0:03:46]} gxf5 {[%emt 0:00:19]} 24. Qh4 {[%emt 0:01:01]} Rxd1+ {[%emt 0:01:43]} (24... Rd5 $16 {might work better.} 25. Qf2 Kh8) 25. Rxd1 $18 {[%emt 0:00:40]} Bd5 {[%emt 0:00:18]} 26. Ka2 {[%emt 0:05:11]} (26. Qe1 $18) 26... Kh7 {[%emt 0:01:08]} 27. Qf2 {[%emt 0:06:56] Prevents Ne2.} Qf7 {[%emt 0:01:36]} 28. Qe3 {[%emt 0:02:00]} Ne6 {[%emt 0:01:19]} (28... Qa7 $16 {was called for.}) 29. Nxe6 {[%emt 0:00:36]} Qxe6 {[%emt 0:00:03]} 30. Bc5 {[%emt 0:01:09]} Qf6 {[%emt 0:03:52]} 31. Rd2 {[%emt 0:03:03][%cal Bd1d2,Bd2f2,Bf2f1][%mdl 32]} Qh4 {[%emt 0:00:38]} 32. Ka1 {[%emt 0:02:39]} f4 {[%emt 0:00:54] [#]} (32... Qh5 $142 33. Ka2 Qh4) 33. Qd3+ $1 {[%emt 0:07:16]} Kh8 {[%emt 0:00:57]} 34. Rf2 {[%emt 0:03:58]} Qh3 {[%emt 0:02:34]} 35. Qd1 {[%emt 0:03:16]} Qe6 {[%emt 0:01:03]} 36. Ka2 {[%emt 0:00:37]} e4 {[%emt 0:01:27]} 37. fxe4 {[%emt 0:01:09]} Qxe4 {[%emt 0:00:05]} 38. Ka1 {[%emt 0:03:50]} f3 {[%emt 0:00:04]} 39. Rf1 {[%emt 0:02:24]} Qe5 {[%emt 0:01:32]} (39... Qf4 $16 40. Rg1 Be5) 40. Qc2 {[%emt 0:00:56]} Be4 {[%emt 0:00:41]} 41. Qf2 {[%emt 0:32:18]} Qd5 {[%emt 0:07:10] Against Rd1} 42. Ka2 {[%emt 0:00:00]} Qd3 {[%emt 0:01:16] [#] ( -> ...Bd5)} 43. Rc1 $1 {[%emt 0:00:00]} Be5 {[%emt 0:03:38]} (43... Kg8 $16 44. Bb6 Bd5) 44. h3 {[%emt 0:00:00]} Bd5 {[%emt 0:08:48]} 45. Qc2 {[%emt 0:00:00]} Qxc2 {[%emt 0:00:04]} 46. Rxc2 {[%emt 0:00:00][%mdl 4096] Endgame Strongly threatening Rc1. KRB-KB} h5 $2 {[%emt 0:02:09] A mistake that costs the game.} (46... Bg3 $16 47. Rc1 f2) 47. Ka3 {[%emt 0:00:00]} Bg3 {[%emt 0:01:16]} 48. b4 {[%emt 0:00:06]} axb4+ {[%emt 0:00:17]} 49. Kxb4 {[%emt 0:00:35]} Be6 {[%emt 0:00:05]} 50. h4 {[%emt 0:01:23]} Be1+ {[%emt 0:00:21]} 51. Ka3 {[%emt 0:00:14]} Bf5 {[%emt 0:00:22]} 52. Rc1 {[%emt 0:01:27]} Bg3 {[%emt 0:00:35]} 53. Rf1 {[%emt 0:00:49]} Bxh4 {[%emt 0:00:18]} 54. Rxf3 {[%emt 0:00:16]} Bg4 {[%emt 0:00:14]} 55. Rf8+ {[%emt 0:01:25]} Kg7 56. a5 {[%emt 0:00:30][%cal Ba4a5,Ba5a6,Ba6a7][%mdl 32] a6 would kill now.} Be2 {[%emt 0:00:29]} 57. Ra8 {[%emt 0:00:40] And now a6 would win.} Bg3 {[%emt 0:01:36]} 58. a6 {[%emt 0:00:31] Black must now prevent a7.} h4 {[%emt 0:00:05]} 59. a7 {[%emt 0:00:27]} h3 {[%emt 0:00:03]} 60. Bd4+ {[%emt 0:00:15] Weighted Error Value: White=0.18 (very precise) /Black=0.43} 1-0

[Event "Germany Countries-chT Youth 2022"]
[Site "Wiesbaden"]
[Date "2022.10.03"]
[Round "6"]
[White "Nied, Pascal"]
[Black "Chassard, Cedric"]
[Result "1-0"]
[ECO "B90"]
[WhiteElo "2131"]
[BlackElo "2160"]
[Annotator "TA"]
[PlyCount "67"]
[EventDate "2022.09.28"]
[EventType "team-tourn"]
[EventRounds "7"]
[EventCountry "GER"]
[SourceTitle "playchess.com"]
[Source "ChessBase"]
[SourceQuality "1"]
[TimeControl "40/5400+30:1800+30"]

{[%evp 15,67,36,15,24,24,18,16,16,33,13,25,31,47,29,51,49,65,58,64,52,56,45,59,34,62,51,52,52,118,57,121,104,97,55,149,107,218,209,375,378,360,278,284,240,525,503,766,598,1301,1277,29986,29987,29997,29998]} 1. e4 {[%emt 0:00:01]} c5 {[%emt 0:00:05]} 2. Nf3 {[%emt 0:00:03]} d6 {[%emt 0:00:06]} 3. d4 {[%emt 0:00:04]} cxd4 {[%emt 0:00:04]} 4. Nxd4 {[%emt 0:00:03]} Nf6 {[%emt 0:00:06]} 5. Nc3 {[%emt 0:00:04]} a6 {[%emt 0:00:02]} 6. Be3 {[%emt 0:00:06]} e5 {[%emt 0:00:09]} 7. Nb3 {[%emt 0:00:04]} Be6 {[%emt 0:00:07]} 8. f3 {[%emt 0:00:06]} h5 {[%emt 0:00:02]} 9. Nd5 {[%emt 0:00:07] B90: Sicilian Najdorf: Unusual White 6th moves, 6 Be3 Ng4 and 6 Be3 e5.} Bxd5 {[%emt 0:00:04]} 10. exd5 {[%emt 0:00:03]} g6 {[%emt 0:00:14]} 11. Qd2 {[%emt 0:00:08] The position is equal.} Bg7 {[%emt 0:00:07]} 12. O-O-O {[%emt 0:00:11]} Nbd7 {[%emt 0:00:25]} 13. Kb1 {[%emt 0:00:36]} Qc7 {[%emt 0:03:35]} 14. Rg1 {[%emt 0:05:57]} Rc8 {[%emt 0:00:56]} 15. Rc1 {[%emt 0:00:42]} e4 {[%emt 0:12:27]} 16. h3 $1 {[%emt 0:01:39]} Ne5 {[%emt 0:12:21]} 17. f4 {[%emt 0:00:27]} Nc4 {[%emt 0:01:54]} 18. Bxc4 {[%emt 0:00:06]} Qxc4 {[%emt 0:00:09]} 19. Rgd1 {[%emt 0:00:07]} O-O {[%emt 0:11:13]} 20. Na5 {[%emt 0:00:08][%cal Bb3a5,Ba5c6,Bc6d4][%mdl 32]} Qc7 {[%emt 0:02:08]} 21. c4 {[%emt 0:00:29] [#]} Nd7 $146 {[%emt 0:05:02] Against c5} (21... Rfe8 $14) ({Predecessor:} 21... Rfd8 22. Rc2 Nd7 23. Nb3 Re8 24. g4 h4 25. Nd4 Nc5 26. f5 Be5 27. Rf1 Qe7 {1-0 (62) Babic,D (2165)-Malashenkov,A (2151) ICCF email 2013}) 22. b4 {[%emt 0:07:12]} (22. g4 $16) 22... b6 {[%emt 0:03:14]} (22... Nf6 $14) 23. Nc6 $16 {[%emt 0:01:00]} Nb8 {[%emt 0:01:26]} 24. Nd4 {[%emt 0:22:46] White has more active pieces. The black rooks are badly placed.} (24. b5 {looks sharper.} Qd7 25. a4 Rfe8 26. Rc2) 24... Nd7 {[%emt 0:13:38] [#]} ({Better is} 24... Qb7 $14) 25. g4 $1 {[%emt 0:04:27] aiming for gxh5.} hxg4 {[%emt 0:04:15]} (25... h4 $16 {was called for.}) 26. hxg4 $18 {[%emt 0:01:06] Hoping for g5.} a5 $2 {[%emt 0:01:07]} (26... Nf6) 27. Nc6 {[%emt 0:12:28] Threatening mate with Ne7+.} Rfe8 {[%emt 0:02:34] Inhibits Ne7+.} 28. Bd4 {[%emt 0:07:02]} e3 {[%emt 0:06:27]} 29. Qh2 {[%emt 0:08:01]} ({Don't do} 29. Bxe3 $6 Nb8 $16) 29... Nf6 $2 {[%emt 0:08:25] [#]} (29... Bxd4 30. Nxd4 Qd8) 30. Qb2 {[%emt 0:00:52]} ({Weaker is} 30. Rh1 Qd7 $16) 30... e2 {[%emt 0:01:58]} (30... Nxg4 $142 31. Bxg7 Qd7) 31. Re1 {[%emt 0:01:34]} Qd7 {[%emt 0:00:44][%cal Od7g4]} 32. Bxf6 {[%emt 0:00:27]} Bxf6 {[%emt 0:00:11]} 33. Qxf6 {[%emt 0:00:13]} Rxc6 {[%emt 0:01:06]} 34. Rh1 {[%emt 0:00:37] Weighted Error Value: White=0.23 (precise) /Black=0.62} 1-0

[Event "Germany Countries-chT Youth 2022"]
[Site "Wiesbaden"]
[Date "2022.10.03"]
[Round "6"]
[White "Sommer, Justus"]
[Black "Leonard, Timo"]
[Result "0-1"]
[ECO "B52"]
[WhiteElo "2122"]
[BlackElo "2089"]
[Annotator "TA"]
[PlyCount "130"]
[EventDate "2022.09.28"]
[EventType "team-tourn"]
[EventRounds "7"]
[EventCountry "GER"]
[SourceTitle "playchess.com"]
[Source "ChessBase"]
[SourceQuality "1"]
[TimeControl "40/5400+30:1800+30"]

{[%evp 18,130,24,0,21,16,20,25,25,1,10,0,14,-58,23,20,8,8,18,11,33,0,9,0,20,23,16,0,6,13,18,-26,19,19,25,11,13,0,25,22,22,0,48,-22,-24,-14,-14,-110,-63,-158,-156,-278,-258,-262,-261,-249,-163,-219,-157,-173,29,15,34,-189,-37,-202,-208,-607,-596,-600,-592,-589,-585,-597,-585,-558,-464,-451,-418,-591,-506,-508,-505,-539,-539,-518,-510,-627,-643,-619,-628,-625,-643,-629,-618,-613,-617,-1058,-974,-2264,-2389,-6194,-5714,-6197,-6197,-6036,-5306,-1421,-1014,-6362,-5712,-4802,-2184,-1434,-924]} 1. e4 {[%emt 0:00:11]} c5 {[%emt 0:00:08]} 2. Nf3 {[%emt 0:00:14]} d6 {[%emt 0:00:05]} 3. Bb5+ {[%emt 0:00:14]} Bd7 {[%emt 0:00:19]} 4. Bxd7+ {[%emt 0:00:24]} Nxd7 {[%emt 0:00:10]} 5. O-O {[%emt 0:00:51]} Ngf6 {[%emt 0:00:05]} 6. Re1 {[%emt 0:00:17]} e6 {[%emt 0:00:51]} 7. d4 {[%emt 0:06:08]} cxd4 {[%emt 0:00:31]} 8. Nxd4 {[%emt 0:01:30]} Be7 {[%emt 0:01:24]} 9. c4 {[%emt 0:02:12]} O-O {[%emt 0:00:20]} 10. Nc3 {[%emt 0:01:57]} a6 {[%emt 0:02:07] B52: Sicilian: Moscow Variation with 3...Bd7.} 11. b3 {[%emt 0:02:57]} Qa5 {[%emt 0:06:42] [#]} 12. Bd2 $146 {[%emt 0:01:56][%cal Oc3d5]} ({Predecessor:} 12. Bb2 Rac8 13. Qd2 Rfe8 14. Rad1 Qh5 15. h3 Bf8 16. Qe2 Qa5 17. Qd2 Qh5 18. Qe2 {½-½ (63) Harika,D (2515)-Jumabayev,R (2654) Chess.com INT 2020}) 12... Qc7 {[%emt 0:08:31] White has an edge.} 13. a4 {[%emt 0:11:36]} Rfe8 {[%emt 0:06:13]} 14. Be3 {[%emt 0:03:31]} Ne5 {[%emt 0:02:46][%cal Od6d5]} 15. f3 {[%emt 0:02:04]} (15. h3 $11) 15... Qa5 {[%emt 0:30:49]} (15... d5 $1 $15 16. f4 (16. exd5 Bb4 $15) 16... Ned7) 16. Qd2 $11 {[%emt 0:24:36]} Bd8 {[%emt 0:01:27]} 17. Rab1 {[%emt 0:02:23]} Rc8 {[%emt 0:02:26]} 18. Red1 {[%emt 0:05:34]} Ng6 {[%emt 0:12:30]} 19. Bf2 {[%emt 0:04:12]} Bb6 {[%emt 0:04:07]} 20. Nce2 {[%emt 0:15:25]} Qc5 {[%emt 0:03:15]} 21. b4 {[%emt 0:02:06]} Qc7 {[%emt 0:00:03]} (21... Qxc4 $2 22. Rbc1 $18) 22. Rbc1 {[%emt 0:00:12]} Ne5 {[%emt 0:02:11]} 23. a5 {[%emt 0:02:19]} Ba7 {[%emt 0:00:02]} 24. b5 {[%emt 0:01:22] Hoping for b6.} (24. Kh1 $5 {[%cal Rd4e6]}) 24... Qe7 {[%emt 0:04:24]} 25. b6 {[%emt 0:00:29]} Bb8 {[%emt 0:00:04]} 26. Qb4 {[%emt 0:00:51]} Nfd7 27. Nb3 {[%emt 0:01:10]} Nc6 {[%emt 0:04:57]} 28. Qa3 {[%emt 0:00:53]} Qg5 {[%emt 0:01:17]} 29. c5 {[%emt 0:03:30]} d5 {[%emt 0:01:26]} (29... Nxc5 $11 {might be stronger.} 30. Bxc5 (30. Nxc5 dxc5 31. Be3 Qh5 $11) 30... dxc5) 30. Qb2 {[%emt 0:00:41]} ({Much worse is} 30. g3 Nde5 31. Nbd4 Nxd4 32. Nxd4 Nc4 $11) (30. Nbd4 $14) 30... Nf6 {[%emt 0:03:00]} 31. exd5 {[%emt 0:01:01]} Nxd5 {[%emt 0:00:25] next ...Ne3 is good for Black.} 32. Ng3 {[%emt 0:00:43]} (32. h4 $11 {remains equal.} Qg6 33. Qd2) 32... f5 {[%emt 0:01:24]} (32... Bf4 $17 33. Rb1 Ne5) 33. Qe2 {[%emt 0:01:48]} (33. Nd4 $15) 33... h5 $17 {[%emt 0:00:49][%cal Bh7h5,Bh5h4][%mdl 32] White must now prevent ...h4. Black is more active.} 34. Qc4 {[%emt 0:01:21]} (34. Rc4 $17 {is a better defense.}) 34... h4 $19 {[%emt 0:00:59]} 35. Nf1 {[%emt 0:00:17]} ({Wrong is} 35. Rxd5 $2 hxg3 36. hxg3 exd5 $19) 35... Ne5 $1 {[%emt 0:00:29][%csl LRc4,LRf3]} 36. Qc2 {[%emt 0:00:58]} Nxf3+ {[%emt 0:01:06]} 37. Kh1 {[%emt 0:00:01]} Ne5 $40 {[%emt 0:00:50][%cal Oh4h3,Bf3e5,Be5g4,Bg4f2][%mdl 160] Black wants a kill.} 38. Nd4 {[%emt 0:00:38][%cal Od4e6]} Nf4 {[%emt 0:00:43]} (38... Nb4 $19 39. Qe2 Nbd3 $1 {[%mdl 512]}) 39. Be3 $11 {[%emt 0:00:16][%mdl 1024] White has compensation.} Ng4 {[%emt 0:00:29]} 40. Nf3 $2 {[%emt 0:00:22] [#]} (40. c6 $1 $14 {keeps the upper hand.} bxc6 41. Nxc6) 40... Qe7 $2 {[%emt 0:00:33]} (40... Qh5 $1 $19 {And now ...h3 would win.} 41. Nd4 Nd5) 41. Nd4 $2 {[%emt 0:03:39]} ({Much weaker is} 41. h3 Nxe3 42. Nxe3 Nh5 $17) ({White should play} 41. Qa4 $1 $15 Nd5 42. Bg5) 41... Nd5 $19 {[%emt 0:11:58]} 42. Qb3 {[%emt 0:05:17]} (42. Bg1) 42... Ndxe3 {[%emt 0:02:50]} 43. Nxe3 {[%emt 0:00:11]} Nf2+ {[%emt 0:01:53]} 44. Kg1 {[%emt 0:00:03]} Nxd1 {[%emt 0:00:06]} 45. Rxd1 {[%emt 0:00:34]} Rxc5 {[%emt 0:03:25]} 46. Ndxf5 {[%emt 0:01:21]} Qf7 {[%emt 0:01:17]} 47. Nxh4 {[%emt 0:02:15]} Qf6 {[%emt 0:02:34]} 48. Qb4 {[%emt 0:02:32]} (48. Nf3 {keeps fighting.} Rxa5 49. Nc4) 48... Qc3 {[%emt 0:02:44] Black is clearly winning.} 49. Qxc3 {[%emt 0:00:15]} Rxc3 {[%emt 0:00:07]} 50. Ng4 {[%emt 0:00:34]} Rc4 {[%emt 0:03:12]} 51. h3 {[%emt 0:00:24]} Bg3 {[%emt 0:00:59]} 52. Nf3 {[%emt 0:00:53]} Rec8 {[%emt 0:00:30]} 53. Kf1 {[%emt 0:00:26]} Rc1 {[%emt 0:00:08]} 54. Rxc1 {[%emt 0:00:13]} Rxc1+ {[%emt 0:00:04][%mdl 4096] Endgame KRB-KNN} 55. Ke2 {[%emt 0:00:03]} Ra1 {[%emt 0:01:23]} 56. Ne3 {[%emt 0:00:54]} Rxa5 {[%emt 0:00:36]} 57. Nd4 {[%emt 0:00:50]} Ra2+ {[%emt 0:01:14]} 58. Kd3 {[%emt 0:00:16]} Bf2 {[%emt 0:00:36]} 59. Nc4 {[%emt 0:00:37]} Bxd4 {[%emt 0:00:35]} 60. Kxd4 {[%emt 0:00:03] KR-KN} Kf8 {[%emt 0:01:34]} 61. g4 {[%emt 0:02:46]} Ke7 {[%emt 0:00:16] aiming for ...Ra4.} 62. h4 {[%emt 0:00:09]} Rg2 {[%emt 0:01:23]} 63. Ne3 {[%emt 0:00:10]} Rb2 {[%emt 0:00:29]} 64. Nc4 {[%emt 0:00:15]} Rb5 {[%emt 0:00:16] ...a5 is the strong threat.} 65. h5 {[%emt 0:00:43]} Kf6 {[%emt 0:00:29] Weighted Error Value: White=0.68/Black=0.28 (precise)} 0-1

[Event "Germany Countries-chT Youth 2022"]
[Site "Wiesbaden"]
[Date "2022.10.03"]
[Round "6"]
[White "Lange, Jannis"]
[Black "Koll, Linus"]
[Result "1/2-1/2"]
[ECO "B52"]
[WhiteElo "2085"]
[BlackElo "2060"]
[Annotator "TA"]
[PlyCount "86"]
[EventDate "2022.09.28"]
[EventType "team-tourn"]
[EventRounds "7"]
[EventCountry "GER"]
[SourceTitle "playchess.com"]
[Source "ChessBase"]
[SourceQuality "1"]
[TimeControl "40/5400+30:1800+30"]

{[%evp 21,86,29,34,39,15,25,47,46,64,58,71,64,68,58,56,62,58,35,35,41,32,18,21,15,16,13,19,0,0,0,0,0,0,0,0,0,0,0,0,0,0,0,0,0,0,0,8,-10,0,0,0,0,0,-10,23,0,0,0,0,0,8,9,150,141,166,76,114]} 1. e4 {[%emt 0:00:02]} c5 {[%emt 0:00:04]} 2. Nf3 {[%emt 0:00:04]} d6 {[%emt 0:00:03]} 3. Bb5+ {[%emt 0:00:46]} Bd7 {[%emt 0:03:33]} 4. Bxd7+ {[%emt 0:00:20]} Qxd7 {[%emt 0:00:21]} 5. c4 {[%emt 0:02:12]} Nc6 {[%emt 0:03:02]} 6. d4 {[%emt 0:00:42]} cxd4 {[%emt 0:01:32]} 7. Nxd4 {[%emt 0:00:05]} g6 {[%emt 0:02:38]} 8. Nc3 {[%emt 0:00:12]} Bg7 {[%emt 0:00:37]} 9. Be3 {[%emt 0:01:11]} Nf6 {[%emt 0:00:17]} 10. f3 {[%emt 0:00:27]} O-O {[%emt 0:00:24]} 11. O-O {[%emt 0:00:24]} Rfd8 {[%emt 0:17:54]} 12. Qd2 {[%emt 0:01:00] B52: Sicilian: Moscow Variation with 3...Bd7.} Nxd4 {[%emt 0:14:18]} 13. Bxd4 {[%emt 0:00:29]} ({Of course not} 13. Qxd4 Ng4 $1 14. Qd2 Nxe3 15. Qxe3 Qc6 $15) 13... Qc6 {[%emt 0:02:41]} 14. b3 {[%emt 0:00:26] White is slightly better.} e6 {[%emt 0:04:17]} 15. Rac1 {[%emt 0:03:31][%cal Ba1c1,Bc1c2,Bc2d2,Bd2d4][%mdl 32] [#]} Rd7 $146 {[%emt 0:00:37]} ({Predecessor:} 15... b6 16. Rfd1 Rd7 17. a4 Rad8 18. b4 h5 19. b5 Qc7 20. Na2 Ne8 21. Be3 a5 22. bxa6 {1-0 (67) Induwara,T (1359)-Janukshan,B (1096) Waskaduwa 2021}) 16. Rfd1 {[%emt 0:00:36] White has more active pieces. The black rooks are badly placed.} Rad8 {[%emt 0:02:18]} 17. Qf2 {[%emt 0:05:33]} b6 {[%emt 0:02:43]} 18. Rc2 {[%emt 0:05:16]} Ne8 {[%emt 0:08:11]} 19. Rcd2 {[%emt 0:04:05]} Bxd4 {[%emt 0:02:57]} 20. Rxd4 {[%emt 0:13:01]} Nc7 {[%emt 0:00:35]} 21. Qd2 {[%emt 0:05:08]} b5 {[%emt 0:01:36]} 22. Nxb5 {[%emt 0:08:12]} Nxb5 {[%emt 0:00:23]} 23. cxb5 {[%emt 0:00:04]} Qxb5 {[%emt 0:00:03]} 24. Qb4 {[%emt 0:04:59]} (24. h3 {is more complex.} Qc5 25. Kh2 d5 26. f4) 24... Qxb4 {[%emt 0:04:26]} 25. Rxb4 $11 {[%emt 0:01:06][%mdl 4096] Endgame KRR-KRR} Rc8 {[%emt 0:00:18]} 26. Rd2 {[%emt 0:01:21]} Kf8 {[%emt 0:00:49]} 27. Rbd4 {[%emt 0:01:44]} Ke7 {[%emt 0:00:49]} 28. Kf2 {[%emt 0:00:35]} f6 {[%emt 0:02:05]} 29. Ra4 {[%emt 0:02:55]} Rc6 {[%emt 0:01:25]} 30. Ra5 {[%emt 0:03:13]} Rdc7 {[%emt 0:05:47]} 31. Kg3 {[%emt 0:00:35]} Rc5 {[%emt 0:00:44]} 32. Ra6 {[%emt 0:06:37]} R5c6 {[%emt 0:00:36]} 33. Ra4 {[%emt 0:01:29]} h5 {[%emt 0:01:13]} 34. b4 {[%emt 0:04:56][%cal Bb3b4,Bb4b5][%mdl 32]} f5 {[%emt 0:06:06]} 35. b5 {[%emt 0:07:12]} Rb6 {[%emt 0:03:01]} 36. Ra5 {[%emt 0:00:25]} a6 {[%emt 0:01:34]} 37. a4 {[%emt 0:10:45]} Rcb7 {[%emt 0:02:32][%cal Ra6b5]} 38. Rb2 {[%emt 0:02:04]} (38. exf5 {with more complications.} gxf5 39. Rxa6 Rxa6 40. bxa6 Ra7 41. Kh4) 38... axb5 {[%emt 0:00:10]} 39. Raxb5 {[%emt 0:02:13]} Rxb5 {[%emt 0:00:21]} 40. axb5 {[%emt 0:00:48]} fxe4 {[%emt 0:04:12]} 41. fxe4 {[%emt 0:30:37] And now Kf4 would win.} Rb6 {[%emt 0:30:24]} (41... Kf6 $11 {keeps the balance.}) 42. Kf4 $16 {[%emt 0:00:46]} Kf6 {[%emt 0:00:26] [#]} 43. h4 {[%emt 0:02:13] Inhibits g5+.} (43. e5+ $1 $18 dxe5+ 44. Ke4) 43... e5+ {Weighted Error Value: White=0.08 (flawless) /Black=0.12 (very precise)} 1/2-1/2